bitfinex/quotes_ETHUSD_20240608
["timestamp","ask_amount","ask_price","bid_price","bid_amount"]
[1717851427711,2.76046632,3685.6,3685.4,1.70176307]
[1717851427922,0.725,3685.5,3685.4,1.70176307]
[1717851428508,0.725,3685.5,3685.4,0.30890841]
[1717851428910,0.725,3685.5,3685.0,2.2]
[1717851429109,0.725,3685.5,3685.4,0.30879473]
[1717851429357,0.725,3685.5,3685.1,1.39285466]
[1717851429592,0.725,3685.5,3685.4,0.30875285]
[1717851429857,0.725,3685.5,3685.1,1.39285466]
[1717851430158,0.725,3685.3,3685.1,1.39285466]
[1717851430357,0.725,3685.3,3685.2,0.30881268]
[1717851430663,0.725,3685.3,3685.2,1.70166734]
[1717851434605,0.725,3685.5,3685.2,1.70166734]
[1717851434715,0.725,3685.5,3685.3,1.39285466]
[1717851435111,2.76046632,3685.6,3685.4,0.30867507]
[1717851435316,3.48546632,3685.6,3685.5,1.39285466]
[1717851435540,6.48546632,3685.6,3685.5,1.39285466]
[1717851435748,7.07199029,3685.6,3685.5,1.70154768]
[1717851436350,6.48546632,3685.6,3685.5,1.70154768]
[1717851436559,7.07198884,3685.6,3685.5,1.70154768]
[1717851436924,6.48546632,3685.6,3685.5,1.70154768]
[1717851437267,6.48546632,3685.6,3685.5,0.30869302]
[1717851437268,10.03124371,3685.6,3685.5,0.30869302]
[1717851437419,10.03124371,3685.6,3685.0,2.2]
[1717851437738,2.71342,3685.4,3685.1,1.70155366]
[1717851437933,0.725,3685.2,3685.1,1.70155366]
[1717851441860,3.4723997,3685.2,3685.1,0.308699]
[1717851442477,3.4723997,3685.2,3684.6,7.48]
[1717851442687,2.71368,3685.1,3684.7,1.70155366]
[1717851442866,0.725,3684.8,3684.7,1.70155366]
[1717851443634,0.7721149,3684.8,3684.7,1.70155366]
[1717851444595,0.0471149,3684.8,3684.7,1.70155366]
[1717851444897,3.43868,3685.1,3684.7,4.02085366]
[1717851445693,3.43868,3685.1,3684.7,1.70155366]
[1717851446534,0.725,3684.9,3684.7,1.70155366]
[1717851452023,2.71368,3685.1,3684.7,1.70155366]
[1717851452189,2.71368,3685.1,3684.8,2.3193]
[1717851452511,3.43868,3685.1,3684.9,1.70205629]
[1717851462920,0.0471043,3685.2,3684.9,1.70205629]
[1717851463799,0.0471043,3685.2,3684.9,1.39285466]
[1717851464054,0.725,3685.1,3685.0,0.30901613]
[1717851464258,0.725,3685.1,3685.0,1.70187079]
[1717851467748,3.43863,3685.1,3685.0,1.70187079]
[1717851469311,6.62251549,3685.1,3685.0,0.30901613]
[1717851469658,7.20913606,3685.1,3684.3,0.4250924]
[1717851469849,0.725,3684.8,3684.4,1.39285466]
[1717851470007,0.725,3684.8,3684.4,1.70188872]
[1717851470709,0.04710597,3684.7,3684.4,1.70188872]
[1717851482949,0.725,3684.8,3684.4,1.70188872]
[1717851482950,0.725,3684.5,3684.4,1.70188872]
[1717851486646,0.725,3684.7,3684.4,1.70188872]
[1717851487663,0.725,3684.5,3684.4,1.70188872]
[1717851487864,3.1725,3684.5,3684.4,1.70188872]
[1717851488040,3.1725,3684.5,3684.4,0.30903406]
[1717851488041,3.8198116,3684.5,3684.4,0.30903406]
[1717851488366,4.40651736,3684.5,3684.4,0.30903406]
[1717851489153,4.40655054,3684.5,3684.4,0.30903406]
[1717851489562,7.40655054,3684.5,3684.4,0.30903406]
[1717851490653,7.40655054,3684.5,3684.1,7.48]
[1717851490654,2.4475,3684.3,3684.1,7.48]
[1717851490852,0.725,3684.2,3684.1,8.87285466]
[1717851491159,0.725,3684.2,3684.1,1.39285466]
[1717851491517,0.725,3684.2,3684.1,1.68147074]
[1717851491855,1.46565505,3684.2,3684.1,0.28861608]
[1717851492054,7.21276568,3684.2,3684.1,0.28861608]
[1717851492259,2.71466,3683.7,3683.4,7.48]
[1717851492442,3.43966,3683.7,3683.5,1.39285466]
[1717851492648,3.43966,3683.7,3683.5,1.68147074]
[1717851494632,2.71466,3683.7,3683.5,1.68147074]
[1717851495237,2.71466,3683.7,3683.6,2.3732]
[1717851495463,2.71466,3683.7,3683.6,4.05598166]
[1717851495765,3.725,3684.2,3683.6,4.05598166]
[1717851495766,2.71437,3684.1,3683.6,4.05598166]
[1717851495924,2.71437,3684.1,3683.7,1.39285466]
[1717851496463,2.71437,3684.1,3683.8,0.289927]
[1717851496665,2.71408,3684.5,3683.9,1.39285466]
[1717851496867,2.71408,3684.5,3684.0,2.3732]
[1717851497025,2.71408,3684.5,3684.1,1.39285466]
[1717851497556,2.71408,3684.5,3684.2,0.289927]
[1717851497727,0.725,3684.7,3684.3,1.39285466]
[1717851497928,2.71378,3684.9,3684.3,1.39285466]
[1717851498150,2.71378,3684.9,3684.4,0.28952587]
[1717851498352,2.71378,3684.9,3684.5,1.39285466]
[1717851499039,2.71378,3684.9,3684.6,0.28952587]
[1717851499358,2.71378,3684.9,3684.7,1.68238053]
[1717851499565,3.0,3685.2,3684.7,1.68238053]
[1717851499720,3.0,3685.3,3684.7,1.68238053]
[1717851499925,3.0,3685.3,3684.7,4.14908053]
[1717851500255,2.71348,3685.4,3684.7,4.14908053]
[1717851500565,0.725,3685.3,3684.7,4.14908053]
[1717851503341,0.04710183,3685.2,3684.7,4.14908053]
[1717851504392,0.725,3684.9,3684.7,1.68238053]
[1717851508377,2.71371,3685.0,3684.7,1.68238053]
[1717851508581,0.725,3684.8,3684.7,1.68238053]
[1717851523698,0.77214168,3684.8,3684.7,1.68238053]
[1717851524200,3.23404168,3684.8,3684.7,0.28952587]
[1717851524708,2.71419,3684.4,3684.1,7.48]
[1717851525007,2.71419,3684.4,3684.2,1.39285466]
[1717851525161,0.725,3684.3,3684.2,1.39285466]
[1717851526867,2.71429,3684.2,3684.1,7.48]
[1717851527084,3.30105528,3684.2,3684.1,7.48]
[1717851527357,3.36308553,3684.2,3684.1,7.48]
[1717851529084,3.36308553,3684.2,3683.4,2.3473]
[1717851529284,0.725,3684.0,3683.5,1.39285466]
[1717851536382,3.43929,3684.2,3683.6,0.28911287]
[1717851536582,3.43929,3684.2,3683.7,1.39285466]
[1717851537217,3.43929,3684.2,3683.8,0.28911287]
[1717851537389,3.43929,3684.2,3683.9,1.39285466]
[1717851537795,3.43929,3684.2,3684.0,0.28911287]
[1717851541626,4.029409,3684.2,3684.0,0.28911287]
[1717851543295,3.43929,3684.2,3684.0,0.28911287]
[1717851543899,3.48642009,3684.2,3684.0,0.28911287]
[1717851548205,4.07317875,3684.2,3684.0,0.28911287]
[1717851548620,3.48642009,3684.2,3684.0,0.28911287]
[1717851549507,4.07317997,3684.2,3684.0,0.28911287]
[1717851555708,3.48642009,3684.2,3684.0,0.28911287]
[1717851556536,0.04713009,3684.2,3684.1,1.39285466]
[1717851556916,0.04713009,3684.2,3684.1,1.6819735]
[1717851557254,0.58675988,3684.8,3684.2,2.3026]
[1717851557418,0.725,3684.7,3684.3,1.68230269]
[1717851559945,0.725,3684.5,3684.3,1.68230269]
[1717851562810,1.39032854,3684.5,3684.3,1.68230269]
[1717851564291,0.725,3684.5,3684.3,1.68230269]
[1717851570615,3.0194,3684.5,3684.3,1.68230269]
[1717851570903,2.71414,3684.4,3684.3,1.68230269]
[1717851573507,2.71414,3684.4,3684.3,0.28944803]
[1717851573700,2.71414,3684.4,3683.8,7.48]
[1717851574024,0.725,3684.1,3683.9,1.68199741]
[1717851577622,0.77214507,3684.1,3683.9,1.68199741]
[1717851579648,3.48655507,3684.1,3683.9,1.68199741]
[1717851583378,3.48655507,3684.1,3683.9,0.28914275]
[1717851583556,0.34865551,3684.0,3683.9,0.28914275]
[1717851583737,0.34865551,3684.0,3683.3,9.7444]
[1717851583938,0.725,3683.8,3683.4,1.39285466]
[1717851586989,0.725,3683.9,3683.4,1.39285466]
[1717851591719,3.48655507,3684.1,3683.5,2.2644]
[1717851592001,3.48655507,3684.1,3683.6,1.39285466]
[1717851596235,3.48655507,3684.1,3683.7,0.2797876]
[1717851596523,3.48655507,3684.1,3683.8,1.39285466]
[1717851596914,3.48655507,3684.1,3683.9,0.2797876]
[1717851597119,3.48655507,3684.1,3684.0,1.39285466]
[1717851597285,3.48655507,3684.1,3684.0,1.67264226]
[1717851603438,3.83521058,3684.1,3684.0,1.67264226]
[1717851603930,1.12080058,3684.1,3684.0,1.67264226]
[1717851604102,0.77214507,3684.1,3684.0,1.67264226]
[1717851606453,0.04714507,3684.1,3684.0,1.67264226]
[1717851608527,2.48294507,3684.1,3684.0,1.67264226]
[1717851609774,2.48294507,3684.1,3684.0,0.2797876]
[1717851610442,3.06974099,3684.1,3684.0,0.2797876]
[1717851611349,4.02064909,3684.1,3684.0,0.2797876]
[1717851611958,2.30984909,3684.1,3684.0,0.2797876]
[1717851612163,1.72305317,3684.1,3684.0,0.2797876]
[1717851613174,1.6759081,3684.1,3684.0,0.2797876]
[1717851615649,1.6759081,3684.1,3684.0,0.2297876]
[1717851617248,0.9509081,3684.1,3684.0,0.2297876]
[1717851617477,1.6759081,3684.1,3684.0,0.2297876]
[1717851617681,1.72289142,3684.1,3684.0,0.2297876]
[1717851618480,1.72289142,3684.1,3684.0,0.278091]
[1717851618686,1.72289142,3684.1,3683.3,2.2928]
[1717851618866,0.77198332,3684.1,3684.0,0.278091]
[1717851619177,0.77198332,3684.1,3683.4,1.39285466]
[1717851619548,0.77198332,3684.1,3683.5,0.278091]
[1717851619767,0.77198332,3684.1,3683.6,1.39285466]
[1717851620334,0.77198332,3684.1,3683.7,0.278091]
[1717851620593,0.04698332,3684.1,3683.8,1.39285466]
[1717851620793,0.58676449,3684.2,3683.9,2.4337]
[1717851621023,2.71402,3684.6,3684.0,1.39285466]
[1717851621197,0.63375409,3684.8,3684.1,2.4337]
[1717851621507,0.63375409,3684.8,3684.2,1.67107136]
[1717851621656,0.7719896,3684.8,3684.2,1.67107136]
[1717851625568,0.0469896,3684.8,3684.3,2.4703]
[1717851625795,0.0469896,3684.8,3684.4,1.39285466]
[1717851626160,0.0469896,3684.8,3684.5,2.74812763]
[1717851626357,3.0,3685.3,3684.6,1.39285466]
[1717851626562,3.0,3685.3,3684.7,2.4703]
[1717851626761,3.0,3685.3,3684.8,1.39285466]
[1717851626964,3.0,3685.3,3684.8,1.67068229]
[1717851627718,3.0,3685.3,3684.9,2.4703]
[1717851628009,3.0,3685.3,3685.0,1.39285466]
[1717851628207,3.725,3685.3,3685.0,1.39285466]
[1717851628412,3.725,3685.3,3685.1,0.27782763]
[1717851628611,3.725,3685.3,3685.2,1.39285466]
[1717851628909,4.31158339,3685.3,3685.2,1.67040105]
[1717851629415,3.725,3685.3,3685.2,1.67040105]
[1717851631825,4.3735394,3685.3,3685.2,0.27754639]
[1717851632017,6.6729394,3685.3,3685.2,0.27754639]
[1717851632174,6.6729394,3685.3,3684.4,7.48]
[1717851632379,0.725,3685.1,3684.5,1.39285466]
[1717851632622,0.725,3685.1,3684.5,1.66990432]
[1717851636124,3.0,3685.3,3684.6,2.4703]
[1717851636324,3.0,3685.3,3684.7,1.39285466]
[1717851636834,3.0,3685.3,3684.8,0.27704966]
[1717851637041,3.0,3685.3,3684.9,1.39285466]
[1717851637373,3.0,3685.3,3685.0,0.27704966]
[1717851637590,3.0,3685.3,3685.1,3.86315466]
[1717851637736,3.725,3685.3,3685.1,3.86315466]
[1717851638071,3.725,3685.3,3685.2,0.27704966]
[1717851638256,3.725,3685.3,3685.2,1.66990432]
[1717851639761,3.725,3685.3,3685.2,1.39285466]
[1717851640074,3.725,3685.3,3685.2,1.66990432]
[1717851641096,6.7340394,3685.3,3685.2,0.27704966]
[1717851641443,6.7340394,3685.3,3684.4,7.48]
[1717851641665,0.725,3685.1,3684.5,1.66990432]
[1717851643406,0.725,3684.9,3684.5,1.66990432]
[1717851647005,0.04696456,3684.8,3684.5,1.66990432]
[1717851659540,2.91830069,3684.9,3684.5,1.66990432]
[1717851660718,2.2683,3684.9,3684.5,1.66990432]
[1717851660918,0.725,3684.8,3684.5,1.66990432]
[1717851662115,0.725,3685.0,3684.5,1.66990432]
[1717851664245,0.58661337,3685.1,3684.5,1.66990432]
[1717851664546,0.725,3685.1,3684.5,1.66990432]
[1717851664747,1.31161337,3685.1,3684.5,1.66990432]
[1717851668324,1.31161337,3685.1,3684.5,4.09410432]
[1717851668824,0.725,3685.1,3684.5,4.09410432]
[1717851669351,0.58661337,3685.2,3684.5,4.09410432]
[1717851669660,0.725,3685.2,3684.6,2.4242]
[1717851669948,0.725,3685.2,3684.7,1.39285466]
[1717851670154,0.725,3685.2,3684.7,1.67028729]
[1717851680473,3.58657103,3685.5,3684.7,1.67028729]
[1717851680655,0.77198448,3685.3,3684.7,1.67028729]
[1717851680861,0.725,3685.1,3684.7,1.67028729]
[1717851685553,0.725,3684.9,3684.7,1.67028729]
[1717851685970,2.71385,3684.8,3684.7,1.67028729]
[1717851689910,2.71385,3684.8,3684.7,0.27743263]
[1717851690213,3.292235,3684.8,3684.1,7.48]
[1717851690408,0.725,3684.4,3684.2,1.39285466]
[1717851690731,3.43921,3684.3,3683.7,7.48]
[1717851691027,2.71421,3684.3,3683.8,1.39285466]
[1717851691227,0.725,3683.9,3683.8,1.39285466]
[1717851692069,0.725,3683.9,3683.8,1.67017956]
[1717851692325,0.725,3684.1,3683.8,1.67017956]
[1717851694535,2.71421,3684.3,3683.9,2.2749]
[1717851694842,2.71421,3684.3,3684.0,1.39285466]
[1717851695154,2.71421,3684.3,3684.0,1.67017956]
[1717851695508,0.58674455,3684.6,3684.0,1.67017956]
[1717851695753,0.725,3684.4,3684.0,1.67017956]
[1717851696469,0.725,3684.5,3684.0,1.67017956]
[1717851696851,5.71393,3684.7,3684.1,2.2749]
[1717851697026,5.71393,3684.7,3684.2,1.39285466]
[1717851697231,5.71393,3684.7,3684.2,1.6711013]
[1717851698574,0.01695,3685.8,3684.3,2.2749]
[1717851698575,2.71364,3685.1,3684.3,2.2749]
[1717851698743,0.725,3684.8,3684.4,1.39285466]
[1717851699274,0.725,3684.8,3684.5,0.27824664]
[1717851699461,0.725,3684.8,3684.6,1.39285466]
[1717851700059,0.725,3684.8,3684.7,0.27824664]
[1717851700261,0.725,3684.8,3684.7,1.6711013]
[1717851701045,0.7719978,3684.8,3684.7,1.6711013]
[1717851704686,0.7719978,3684.8,3684.7,0.27824664]
[1717851705204,0.7719978,3684.8,3684.3,2.2749]
[1717851705365,0.7719978,3684.8,3684.4,1.39285466]
[1717851705557,0.7719978,3684.8,3684.5,0.27824664]
[1717851705789,0.7719978,3684.8,3684.6,1.39285466]
[1717851706482,0.7719978,3684.8,3684.7,0.27824664]
[1717851710266,0.7719978,3684.8,3684.7,0.22824664]
[1717851711166,0.7719978,3684.8,3684.7,1.39285466]
[1717851711391,0.0469978,3684.8,3684.7,1.66926103]
[1717851722976,0.725,3684.9,3684.7,1.66926103]
[1717851723185,0.725,3684.9,3684.8,1.39285466]
[1717851723403,0.725,3684.9,3684.8,1.6691952]
[1717851726882,1.66284899,3684.9,3684.8,1.6691952]
[1717851727669,0.93784899,3684.9,3684.8,1.6691952]
[1717851728107,1.66284899,3684.9,3684.8,1.6691952]
[1717851735923,1.66284899,3684.9,3684.8,0.27634054]
[1717851736233,2.3389,3684.8,3684.1,7.48]
[1717851736430,2.3389,3684.8,3684.2,1.39285466]
[1717851736431,0.03282063,3684.7,3684.2,1.39285466]
[1717851736633,0.725,3684.3,3684.2,1.66908146]
[1717851737346,2.71424,3684.3,3684.2,1.66908146]
[1717851738854,2.70937354,3684.3,3684.2,1.66908146]
[1717851742209,3.43437354,3684.3,3684.2,1.66908146]
[1717851743050,5.76087354,3684.3,3684.2,0.2762268]
[1717851743213,9.10431089,3684.3,3684.2,0.2762268]
[1717851743404,9.69097982,3684.3,3683.6,7.48]
[1717851743743,2.7144,3684.1,3683.7,1.39285466]
[1717851743951,0.725,3683.8,3683.7,1.66929696]
[1717851747137,3.725,3683.8,3683.7,1.66929696]
[1717851747344,4.36727689,3683.8,3683.7,1.66929696]
[1717851747528,4.95406704,3683.8,3683.7,1.66929696]
[1717851748551,4.31179015,3683.8,3683.7,1.66929696]
[1717851749041,3.58679015,3683.8,3683.7,1.66929696]
[1717851749226,3.725,3683.8,3683.7,1.66929696]
[1717851749726,3.725,3683.8,3683.7,0.2764423]
[1717851750132,2.71503,3683.2,3683.1,9.68]
[1717851750335,2.71503,3683.2,3683.1,11.07285466]
[1717851750654,3.44003,3683.2,3683.1,11.07285466]
[1717851751853,2.71503,3683.2,3683.1,11.07285466]
[1717851752021,3.44003,3683.2,3683.1,11.07285466]
[1717851752223,3.44003,3683.2,3683.1,11.35043464]
[1717851753247,2.71503,3683.2,3683.1,11.35043464]
[1717851753436,3.44003,3683.2,3683.1,11.35043464]
[1717851753963,3.44003,3683.2,3683.1,9.95757998]
[1717851754835,3.44003,3683.2,3683.1,2.47757998]
[1717851756466,2.71503,3683.2,3683.1,2.47757998]
[1717851756822,3.44003,3683.2,3683.1,2.47757998]
[1717851771288,2.71503,3683.2,3683.1,3.87043464]
[1717851771866,2.71503,3683.2,3683.1,6.22963464]
[1717851773256,2.71503,3683.2,3683.1,3.87043464]
[1717851775061,3.44003,3683.2,3683.1,3.87043464]
[1717851775802,3.44003,3683.2,3683.1,2.47757998]
[1717851781768,0.725,3683.2,3683.1,3.87043464]
[1717851781965,0.04693424,3683.4,3683.1,6.33553464]
[1717851782205,0.04693424,3683.4,3683.3,2.4651]
[1717851782408,3.0,3683.6,3683.3,3.85795466]
[1717851782581,3.0,3683.6,3683.4,1.39285466]
[1717851783094,3.58681084,3683.6,3683.5,0.27766382]
[1717851783309,3.0,3683.6,3683.5,1.67051848]
[1717851783515,3.58681137,3683.6,3683.5,1.67051848]
[1717851784311,3.58681137,3683.6,3683.5,0.27766382]
[1717851784702,3.58681137,3683.6,3683.1,2.2]
[1717851785008,0.725,3683.5,3683.2,1.39285466]
[1717851788823,0.725,3683.3,3683.2,1.39285466]
[1717851790904,0.725,3683.3,3683.1,2.2]
[1717851791115,2.71503,3683.2,3683.1,2.2]
[1717851797406,2.71503,3683.2,3683.1,2.47774767]
[1717851798842,3.44003,3683.2,3683.1,2.47774767]
[1717851802947,3.48688295,3683.2,3683.1,2.47774767]
[1717851803652,2.76188295,3683.2,3683.1,2.47774767]
[1717851804155,3.48688295,3683.2,3683.1,2.47774767]
[1717851806181,2.71503,3683.2,3683.1,2.47774767]
[1717851811680,0.58687273,3683.5,3683.1,3.87060233]
[1717851811878,0.725,3683.4,3683.2,1.39285466]
[1717851812377,0.77186214,3683.7,3683.3,0.27783154]
[1717851812584,0.77186214,3683.7,3683.4,1.39285466]
[1717851812876,0.77186214,3683.7,3683.5,0.27783154]
[1717851813097,0.77186214,3683.7,3683.6,1.39285466]
[1717851813874,0.77186214,3683.7,3683.6,1.6706862]
[1717851815446,0.04686214,3683.7,3683.6,1.6706862]
[1717851815654,2.71415,3684.4,3683.6,1.6706862]
[1717851815972,0.04683706,3684.7,3683.7,3.75005466]
[1717851816180,0.04683706,3684.7,3683.9,2.3572]
[1717851816360,0.77183706,3684.7,3684.0,1.39285466]
[1717851816563,0.04683706,3684.7,3684.1,2.3572]
[1717851816892,0.04683706,3684.7,3684.2,1.39285466]
[1717851817313,3.43882,3684.9,3684.2,1.39285466]
[1717851817485,3.43882,3684.9,3684.3,0.27716082]
[1717851817801,2.71382,3684.9,3684.4,1.39285466]
[1717851817947,3.43882,3684.9,3684.4,1.39285466]
[1717851818147,3.43882,3684.9,3684.5,0.27690342]
[1717851818346,3.43882,3684.9,3684.6,1.39285466]
[1717851818759,3.43882,3684.9,3684.7,0.27690342]
[1717851818966,3.43882,3684.9,3684.8,1.39285466]
[1717851819274,6.43882,3684.9,3684.8,1.39285466]
[1717851821489,5.71382,3684.9,3684.8,1.39285466]
[1717851821711,3.0,3684.9,3684.8,1.39285466]
[1717851821845,0.725,3685.0,3684.8,1.39285466]
[1717851822210,0.77184294,3685.2,3684.9,0.27608913]
[1717851822350,0.77184294,3685.2,3684.9,1.66894379]
[1717851822679,0.725,3685.0,3684.9,1.66894379]
[1717851823593,0.04684294,3685.2,3684.9,1.66894379]
[1717851823844,0.04684294,3685.2,3685.0,1.39285466]
[1717851824182,0.04684294,3685.2,3685.1,0.27603526]
[1717851824353,0.04684294,3685.2,3685.1,1.66888992]
[1717851834017,0.04412876,3685.2,3685.1,1.66888992]
[1717851840346,0.725,3685.3,3685.1,1.66888992]
[1717851840525,2.71346,3685.4,3685.2,1.39285466]
[1717851840726,3.43846,3685.4,3685.3,0.27583776]
[1717851840926,6.43846,3685.4,3685.3,1.39285466]
[1717851841328,6.43846,3685.4,3685.3,1.66869242]
[1717851844446,7.02500958,3685.4,3685.3,1.66869242]
[1717851844759,6.43846,3685.4,3685.3,1.66869242]
[1717851845166,7.0250083,3685.4,3685.3,1.66869242]
[1717851852760,7.02500172,3685.4,3685.3,1.66869242]
[1717851885151,6.30000172,3685.4,3685.3,1.66869242]
[1717851885359,5.71346,3685.4,3685.3,1.66869242]
[1717851886343,5.76041448,3685.4,3685.3,1.66869242]
[1717851891768,6.48541448,3685.4,3685.3,1.66869242]
[1717851892258,7.07195423,3685.4,3685.3,1.66869242]
[1717851895788,6.48541448,3685.4,3685.3,1.66869242]
[1717851895998,7.07195425,3685.4,3685.3,1.66869242]
[1717851896598,6.34695425,3685.4,3685.3,1.66869242]
[1717851896947,5.76041448,3685.4,3685.3,1.66869242]
[1717851900195,6.34695425,3685.4,3685.3,1.66869242]
[1717851904161,6.34697003,3685.4,3685.3,1.66869242]
[1717851908802,6.34697003,3685.4,3685.3,1.6682855]
[1717851914365,6.34695969,3685.4,3685.3,1.6682855]
[1717851915310,6.34696007,3685.4,3685.3,1.6682855]
[1717851917812,2.71399,3684.6,3684.5,7.48]
[1717851918029,2.71399,3684.6,3684.0,14.572]
[1717851918030,3.43899,3684.6,3683.9,7.48]
[1717851918194,2.71418,3684.4,3684.1,4.0]
[1717851918392,2.71436,3684.1,3683.9,7.48]
[1717851918596,2.71436,3684.1,3683.1,9.68]
[1717851918597,2.71459,3683.8,3683.1,9.68]
[1717851918791,0.725,3683.6,3683.2,1.39285466]
[1717851919241,0.725,3683.4,3683.2,1.39285466]
[1717851920652,2.71459,3683.8,3683.2,1.39285466]
[1717851925447,2.71459,3683.8,3683.3,0.24913892]
[1717851925668,2.71459,3683.8,3683.4,1.39285466]
[1717851926144,2.71459,3683.8,3683.5,0.24913892]
[1717851926349,2.71459,3683.8,3683.6,1.39285466]
[1717851927062,2.71459,3683.8,3683.7,0.24913892]
[1717851927222,2.71459,3683.8,3683.7,1.64199358]
[1717851931046,3.0,3684.0,3683.7,1.64199358]
[1717851931248,0.725,3684.1,3683.8,1.39285466]
[1717851931541,0.725,3684.1,3683.9,0.24819679]
[1717851931699,0.725,3684.1,3684.0,1.39285466]
[1717851932107,0.725,3684.1,3684.0,1.74297757]
[1717851949443,0.77208194,3684.1,3684.0,1.74297757]
[1717851950987,3.02428194,3684.1,3684.0,1.74297757]
[1717851951130,6.61102659,3684.1,3684.0,1.74297757]
[1717851951334,6.61102659,3684.1,3684.0,1.39285466]
[1717851955676,6.61107787,3684.1,3684.0,1.39285466]
[1717851956398,3.63387787,3684.1,3684.0,1.39285466]
[1717851956561,3.77208194,3684.1,3684.0,1.39285466]
[1717851956887,4.35887787,3684.1,3684.0,1.39285466]
[1717851957043,3.77208194,3684.1,3684.0,1.39285466]
[1717851957241,4.35887787,3684.1,3684.0,1.39285466]
[1717851957445,0.77208194,3684.1,3684.0,1.74332342]
[1717851961707,0.725,3684.1,3684.0,1.74332342]
[1717851962090,3.5867653,3684.2,3684.0,1.74332342]
[1717851962292,0.725,3684.1,3684.0,1.74332342]
[1717851963558,0.5867653,3684.4,3684.0,1.74332342]
[1717851963758,1.3117653,3684.6,3684.0,1.74332342]
[1717851963956,0.725,3684.6,3684.0,1.74332342]
[1717851965075,3.725,3684.6,3684.0,1.74332342]
[1717851965276,4.3117653,3684.6,3684.0,1.74332342]
[1717851965963,0.725,3684.4,3684.0,1.74332342]
[1717851968604,3.58670277,3684.6,3684.0,1.74332342]
[1717851968790,0.725,3684.5,3684.1,2.4528]
[1717851968958,0.725,3684.5,3684.2,1.39285466]
[1717851969364,0.725,3684.5,3684.3,0.35014679]
[1717851969573,0.725,3684.5,3684.4,1.39285466]
[1717851969804,0.725,3684.5,3684.4,1.74270928]
[1717851970899,3.58666397,3684.6,3684.4,1.74270928]
[1717851971409,3.0,3684.6,3684.4,1.74270928]
[1717851971617,3.58666152,3684.6,3684.4,1.74270928]
[1717851971819,3.0,3684.6,3684.4,1.74270928]
[1717851972677,2.71363,3685.1,3684.5,2.4528]
[1717851972881,3.43863,3685.1,3684.6,1.39285466]
[1717851973077,2.3411,3685.6,3684.6,1.39285466]
[1717851973078,2.71333,3685.5,3684.6,1.39285466]
[1717851973295,0.725,3685.2,3684.7,0.34985462]
[1717851973496,0.725,3685.2,3684.8,1.39285466]
[1717851973809,0.725,3685.2,3684.9,0.34966983]
[1717851974004,0.725,3685.2,3685.0,1.39285466]
[1717851974504,0.725,3685.2,3685.1,0.34966983]
[1717851974680,0.725,3685.2,3685.1,1.74252449]
[1717851992032,3.7655739,3685.2,3685.1,0.34966983]
[1717851992330,6.7655739,3685.2,3685.1,0.34966983]
[1717851992484,2.7137,3685.1,3684.5,7.48]
[1717851992687,0.725,3684.7,3684.6,1.39285466]
[1717851995463,2.71408,3684.5,3683.7,2.4445]
[1717851995654,0.725,3684.1,3683.8,1.39285466]
[1717852000655,2.71408,3684.5,3683.8,1.39285466]
[1717852000822,0.725,3684.3,3683.8,1.39285466]
[1717852007251,0.725,3684.3,3683.9,0.34916914]
[1717852007491,0.725,3684.3,3684.0,1.39285466]
[1717852007861,0.725,3684.3,3684.1,0.34916914]
[1717852008040,0.725,3684.3,3684.1,1.7420238]
[1717852009134,2.71408,3684.5,3684.2,1.39285466]
[1717852009371,0.725,3684.3,3684.2,1.39285466]
[1717852009569,0.725,3684.3,3684.2,1.7420238]
[1717852012495,2.71408,3684.5,3684.2,1.7420238]
[1717852012781,0.725,3684.4,3684.2,1.7420238]
[1717852021473,0.6827122,3684.4,3684.2,1.7420238]
[1717852022154,5.14911,3684.3,3684.2,0.34916914]
[1717852022356,5.79896706,3684.3,3683.6,7.48]
[1717852022599,0.725,3683.8,3683.7,1.7420238]
[1717852023397,0.58671113,3684.2,3683.7,1.7420238]
[1717852023595,0.725,3684.0,3683.7,1.7420238]
[1717852028911,0.725,3683.8,3683.7,1.7420238]
[1717852034146,0.725,3683.8,3683.7,0.34916914]
[1717852034433,0.725,3683.8,3683.1,12.158]
[1717852034434,2.71474,3683.6,3683.1,12.158]
[1717852034646,0.725,3683.4,3683.2,1.7420238]
[1717852037734,2.71495,3683.3,3683.2,1.7420238]
[1717852038899,2.71495,3683.3,3683.2,0.34916914]
[1717852039209,3.292795,3683.3,3683.2,0.34916914]
[1717852041208,2.71495,3683.3,3683.2,0.34916914]
[1717852042733,5.71495,3683.3,3683.2,0.34916914]
[1717852044241,6.43995,3683.3,3683.2,0.34916914]
[1717852046040,6.48717394,3683.3,3683.2,0.34916914]
[1717852047822,2.71524,3683.0,3682.5,7.48]
[1717852048025,0.725,3682.7,3682.6,1.7420238]
[1717852050744,0.725,3682.7,3682.6,0.34916914]
[1717852050945,3.618384,3682.7,3682.6,0.34916914]
[1717852051151,2.71555,3682.5,3682.0,7.48]
[1717852051316,2.71555,3682.5,3682.1,1.39285466]
[1717852051517,0.725,3682.2,3682.1,1.7420238]
[1717852052251,0.725,3682.2,3682.1,0.34916914]
[1717852052455,3.0426,3682.2,3682.1,0.34916914]
[1717852053761,0.725,3682.3,3682.1,0.34916914]
[1717852053943,2.71569,3682.3,3682.1,0.34916914]
[1717852055677,3.05037234,3682.3,3682.1,0.34916914]
[1717852055832,0.725,3682.2,3682.1,0.34916914]
[1717852056630,2.71589,3682.1,3681.4,9.9797]
[1717852056833,2.71589,3682.1,3681.5,1.39285466]
[1717852057081,0.03282063,3682.0,3681.5,1.74081204]
[1717852057664,2.71589,3682.1,3681.5,1.74081204]
[1717852059378,3.30261889,3682.6,3682.0,0.725]
[1717852059672,3.30261889,3682.6,3681.8,3.78225466]
[1717852059673,2.71551,3682.6,3682.2,0.725]
[1717852059865,2.71551,3682.6,3682.3,1.74081204]
[1717852065570,4.14326571,3682.6,3682.3,0.34795738]
[1717852065755,3.44062,3682.4,3682.3,0.34795738]
[1717852066093,6.44062,3682.4,3681.6,7.48]
[1717852066297,6.44062,3682.4,3681.7,1.39285466]
[1717852066298,2.71582,3682.2,3681.7,1.39285466]
[1717852066517,2.71582,3682.2,3681.7,1.74081204]
[1717852069016,3.44082,3682.2,3681.7,0.34795738]